bitfinex-derivatives/quotes_ETHF0:USTF0_20250905
["timestamp","ask_amount","ask_price","bid_price","bid_amount"]
[1757083982819,1.7954,4276.2,4275.1,1.8261]
[1757083983620,1.97514419,4276.2,4275.1,1.5481]
[1757083983818,1.97514419,4276.2,4275.2,0.278]
[1757083984419,1.97514419,4276.2,4275.1,1.5481]
[1757083984722,0.6376,4276.0,4275.2,0.278]
[1757083984923,1.7954,4275.9,4275.1,1.5481]
[1757083985227,0.278,4275.9,4275.1,1.5481]
[1757083985620,0.17974419,4276.2,4275.1,1.5481]
[1757083985823,3.2078,4275.7,4275.1,1.5481]
[1757083986220,0.277,4275.9,4275.1,5.0329]
[1757083986523,3.2078,4275.7,4275.3,1.5481]
[1757083987222,4.7252,4275.7,4275.3,1.5481]
[1757083987422,1.5174,4275.5,4275.2,0.277]
[1757083987624,0.277,4275.9,4275.3,1.5481]
[1757083987826,3.2078,4275.5,4275.3,1.5481]
[1757083988125,1.5174,4275.3,4275.0,1.5481]
[1757083988321,1.5174,4275.3,4274.5,3.8466]
[1757083988322,3.2078,4275.5,4274.9,1.5481]
[1757083988518,0.17227471,4276.2,4276.0,44.9978]
[1757083988719,0.51086,4276.1,4276.0,44.9978]
[1757083988925,3.4848,4276.1,4276.0,44.9978]
[1757083989221,7.71866,4276.1,4276.0,43.72966206]
[1757083989428,7.71866,4276.1,4276.0,22.74220127]
[1757083989628,7.71866,4276.1,4276.0,19.73200127]
[1757083989928,7.71866,4276.1,4276.0,16.34470127]
[1757083990121,7.71866,4276.1,4276.0,14.23570127]
[1757083990423,3.44166,4276.1,4276.0,13.06580687]
[1757083990726,3.4848,4276.1,4276.0,10.72601807]
[1757083991023,0.277,4276.1,4276.0,9.08112367]
[1757083991223,0.17264421,4276.2,4276.0,11.26802367]
[1757083991425,3.4848,4276.6,4276.0,12.92772367]
[1757083991725,0.277,4276.6,4276.0,12.92772367]
[1757083991927,0.277,4277.2,4276.5,3.2078]
[1757083992128,0.45326882,4277.2,4276.6,1.5481]
[1757083992728,0.277,4277.2,4277.1,1.5481]
[1757083993025,0.277,4277.7,4277.5,0.6388]
[1757083993237,1.14773334,4277.9,4277.6,1.5481]
[1757083994222,1.5369962,4278.4,4278.0,0.6388]
[1757083994424,1.5369962,4278.4,4278.1,1.5481]
[1757083994624,1.5369962,4278.4,4278.2,4.7559]
[1757083994824,1.5369962,4278.4,4278.3,1.5481]
[1757083995234,1.5369962,4278.4,4278.3,1.8251]
[1757083996234,0.34574943,4278.9,4278.3,1.5481]
[1757083996431,3.2078,4278.6,4278.0,0.6388]
[1757083996635,3.2078,4278.5,4278.0,0.6388]
[1757083996827,3.2078,4278.5,4278.1,1.5481]
[1757083997027,3.2078,4278.5,4278.0,0.6388]
[1757083997329,3.2078,4278.5,4278.1,1.5481]
[1757083997633,1.1478,4278.4,4277.7,3.2078]
[1757083997826,0.277,4278.3,4277.7,3.2078]
[1757083998026,3.2078,4278.5,4277.7,3.2078]
[1757083998027,0.34574943,4278.9,4278.1,1.5481]
[1757083998234,0.277,4278.8,4278.1,1.5481]
[1757083998936,3.4848,4278.8,4278.1,1.5481]
[1757083999733,3.2078,4278.8,4278.1,1.5481]
[1757083999933,0.34574943,4278.9,4278.1,1.5481]
[1757083999934,3.2078,4278.7,4278.1,1.5481]
[1757084000128,0.34574943,4278.9,4278.1,1.5481]
[1757084000330,0.34574943,4278.9,4278.5,0.618]
[1757084000529,0.34574943,4278.9,4278.6,1.566]
[1757084000729,0.34574943,4278.9,4278.5,0.618]
[1757084001129,0.34574943,4278.9,4278.6,1.566]
[1757084001337,0.34574943,4278.9,4278.5,0.618]
[1757084001737,0.34574943,4278.9,4278.6,1.566]
[1757084001938,0.34574943,4278.9,4278.5,0.618]
[1757084002333,0.34574943,4278.9,4278.6,1.566]
[1757084002532,0.34574943,4278.9,4278.5,0.618]
[1757084002931,0.17,4278.9,4278.6,1.566]
[1757084003137,0.17,4278.9,4278.7,1.566]
[1757084004048,0.17,4278.9,4278.8,1.566]
[1757084004643,0.17,4278.9,4278.8,4.7738]
[1757084005138,0.277,4279.6,4278.8,7.2078]
[1757084005341,0.277,4279.6,4279.5,0.618]
[1757084005540,0.17865406,4279.9,4279.6,1.566]
[1757084005840,0.276,4280.1,4279.5,0.618]
[1757084006537,0.276,4280.1,4279.0,100.618]
[1757084006538,3.2078,4279.6,4279.1,1.566]
[1757084006841,3.2078,4279.6,4279.0,102.184]
[1757084007240,0.68373566,4280.1,4279.5,0.618]
[1757084007241,3.66036156,4280.1,4279.5,0.618]
[1757084007430,3.66036156,4280.1,4279.5,2.184]
[1757084007633,3.2078,4279.6,4279.0,101.449]
[1757084007836,4.6861,4279.1,4279.0,97.6609564]
[1757084008033,4.9621,4279.1,4279.0,96.49207666]
[1757084008243,3.2078,4279.1,4279.0,98.67607666]
[1757084008436,0.276,4279.7,4279.0,97.11007666]
[1757084008637,0.276,4279.7,4279.1,1.566]
[1757084009344,0.276,4279.7,4279.6,1.566]
[1757084009546,0.276,4279.7,4279.1,1.566]
[1757084009738,3.2078,4279.3,4279.1,1.566]
[1757084009936,3.2078,4279.3,4279.0,97.11007666]
[1757084010137,0.276,4279.2,4279.1,1.566]
[1757084012639,3.2078,4280.0,4279.5,0.618]
[1757084012835,0.276,4280.1,4279.6,1.566]
[1757084013036,3.2078,4280.5,4280.0,0.618]
[1757084013237,3.2078,4281.0,4280.6,1.566]
[1757084013439,3.2078,4281.0,4280.5,0.618]
[1757084013637,3.2078,4281.0,4280.6,1.566]
[1757084014344,0.4507128,4281.3,4281.0,0.618]
[1757084014545,0.276,4281.3,4281.1,1.566]
[1757084014846,1.5369962,4282.3,4281.6,1.566]
[1757084014847,0.50467914,4282.0,4281.6,1.566]
[1757084015036,3.2078,4281.7,4281.0,0.618]
[1757084015242,3.2078,4281.1,4280.6,0.276]
[1757084015437,3.2078,4281.1,4280.5,0.618]
[1757084015837,0.276,4281.2,4281.0,0.618]
[1757084016844,3.4838,4281.2,4280.5,0.618]
[1757084017039,0.276,4281.2,4280.5,0.618]
[1757084017238,0.276,4281.2,4280.6,1.566]
[1757084017735,3.2078,4281.7,4280.6,1.566]
[1757084018041,0.17564464,4282.0,4280.6,1.566]
[1757084018238,3.2078,4281.6,4281.0,0.618]
[1757084018443,3.2078,4281.7,4281.1,1.566]
[1757084018646,0.276,4281.9,4281.1,1.566]
[1757084019552,3.2078,4281.6,4281.0,1.566]
[1757084019749,3.2078,4281.1,4281.0,1.566]
[1757084020150,3.2078,4281.1,4281.0,2.184]
[1757084020745,3.2078,4281.1,4281.0,1.566]
[1757084020943,3.2078,4281.1,4280.5,2.184]
[1757084021143,3.2078,4281.1,4280.4,3.2078]
[1757084021144,1.169,4280.9,4280.4,3.2078]
[1757084021343,3.2078,4280.5,4280.1,1.566]
[1757084021545,3.4828,4280.5,4280.1,1.566]
[1757084021944,3.4828,4280.5,4280.0,0.618]
[1757084022447,3.4828,4280.5,4280.1,1.566]
[1757084022657,0.275,4280.5,4280.1,1.566]
[1757084022951,3.2078,4281.1,4280.4,1.566]
[1757084023146,0.17861601,4282.0,4281.1,1.566]
[1757084023353,0.17861601,4282.0,4281.0,0.618]
[1757084023354,3.2078,4282.3,4282.1,1.566]
[1757084023746,0.275,4283.0,4282.1,1.566]
[1757084023942,0.275,4283.0,4282.5,0.618]
[1757084024150,0.45141037,4283.0,4282.6,1.566]
[1757084026049,0.551,4284.5,4282.6,1.566]
[1757084026050,0.275,4283.5,4282.6,1.566]
[1757084026555,0.17931041,4283.4,4282.6,1.841]
[1757084027149,1.169,4284.2,4282.6,1.841]
[1757084027150,1.16435678,4284.2,4283.1,1.566]
[1757084027345,1.16435678,4284.2,4283.7,3.2078]
[1757084027550,1.4783,4284.1,4283.7,3.2078]
[1757084027846,1.16435678,4284.2,4283.7,3.2078]
[1757084028046,1.16435678,4284.2,4283.8,2.07442999]
[1757084028259,1.16435678,4284.2,4284.1,1.4864]
[1757084028446,1.5524757,4284.7,4284.1,1.7614]
[1757084028647,1.5524757,4284.7,4284.2,0.275]
[1757084028949,1.5524757,4284.7,4284.5,1.4367]
[1757084029141,1.5524757,4284.7,4284.4,3.2078]
[1757084029344,1.5524757,4284.7,4284.6,1.4367]
[1757084029540,0.1135757,4284.7,4284.6,1.4367]
[1757084029747,0.1135757,4284.7,4284.4,3.2078]
[1757084029957,1.5593,4284.6,4284.5,0.275]
[1757084030253,0.1135757,4284.7,4284.5,0.275]
[1757084030453,0.1135757,4284.7,4284.6,4.0]
[1757084030651,0.1135757,4284.7,4284.6,4.23339]
[1757084030852,0.1135757,4284.7,4284.6,4.0]
[1757084031249,0.1135757,4284.7,4284.6,4.275]
[1757084031749,0.1135757,4284.7,4284.6,4.0]
[1757084031949,0.1135757,4284.7,4284.6,4.275]
[1757084032146,0.1135757,4284.7,4284.4,3.2078]
[1757084032350,0.1135757,4284.7,4284.5,0.275]
[1757084032550,0.1135757,4284.7,4284.5,4.275]
[1757084033248,0.1135757,4284.7,4284.5,4.0]
[1757084033442,0.1135757,4284.7,4284.6,0.275]
[1757084034057,0.1135757,4284.7,4284.4,3.2078]
[1757084034258,0.1135757,4284.7,4284.5,4.275]
[1757084034451,1.92020349,4285.1,4284.6,0.275]
[1757084034647,1.92020349,4285.1,4285.0,3.62783]
[1757084035057,1.92020349,4285.1,4285.0,3.90283]
[1757084035356,1.92020349,4285.1,4285.0,7.90283]
[1757084035654,1.92020349,4285.1,4285.0,3.2078]
[1757084035854,1.92020349,4285.1,4285.0,3.4818]
[1757084036052,1.5593,4285.8,4285.0,3.4818]
[1757084036251,0.6359,4286.0,4285.1,0.274]
[1757084036459,0.6359,4286.0,4285.2,0.274]
[1757084036758,1.5593,4285.4,4285.2,0.274]
[1757084037055,0.6359,4285.5,4285.0,3.2078]
[1757084037255,1.5593,4285.4,4285.0,3.2078]
[1757084037754,1.5593,4285.4,4285.0,3.20633827]
[1757084037953,0.6359,4286.5,4285.1,5.32404]
[1757084038154,1.5593,4286.4,4286.1,3.2078]
[1757084038359,2.1952,4287.0,4286.1,3.4818]
[1757084038555,1.5593,4286.9,4286.6,3.2078]
[1757084038759,1.5593,4287.4,4286.7,0.274]
[1757084038952,1.5593,4287.4,4286.6,3.2078]
[1757084039152,1.5593,4287.4,4286.7,0.274]
[1757084039759,3.2078,4287.6,4286.7,0.274]
[1757084040061,1.5593,4287.8,4287.1,3.2078]
[1757084040258,0.81673556,4288.0,4286.6,3.2078]
[1757084040558,1.5593,4287.4,4286.6,3.2078]
[1757084040750,1.5593,4287.3,4286.2,0.274]
[1757084040954,1.5593,4287.3,4286.6,3.2078]
[1757084041364,0.6359,4287.0,4286.6,3.2078]
[1757084041568,1.5593,4286.4,4286.0,3.2078]
[1757084041756,0.6359,4286.5,4286.0,3.2078]
[1757084041957,1.5593,4286.4,4286.0,3.2078]
[1757084042151,0.6359,4286.5,4286.1,0.274]
[1757084042355,0.6359,4286.5,4285.2,1.05002]
[1757084042356,0.9099,4286.5,4285.2,3.2078]
[1757084042560,2.1952,4286.0,4285.2,3.4818]
[1757084042761,0.9099,4286.5,4285.7,3.2078]
[1757084043063,0.6359,4286.5,4286.2,3.2078]
[1757084043254,1.5593,4286.9,4286.2,3.4818]
[1757084043450,1.5593,4286.9,4286.7,3.2078]
[1757084043654,1.5593,4286.9,4286.8,0.274]
[1757084044661,1.5593,4286.9,4286.7,3.4818]
[1757084044858,0.6359,4287.5,4286.7,3.4818]
[1757084045164,1.5593,4287.4,4286.8,0.274]
[1757084045564,0.6359,4287.5,4286.9,0.274]
[1757084045760,0.6359,4287.5,4287.2,3.2078]
[1757084046265,0.6359,4288.0,4287.2,3.4818]
[1757084046461,0.6359,4288.0,4287.3,3.4818]
[1757084047165,1.5593,4287.9,4287.8,3.2078]
[1757084047755,1.5593,4287.9,4287.8,3.4818]
[1757084048368,1.5593,4287.9,4287.8,3.2078]
[1757084048569,1.5593,4287.9,4287.8,3.4818]
[1757084048967,1.5593,4287.9,4287.8,3.2078]
[1757084049371,1.5593,4287.9,4287.8,3.4818]
[1757084049563,1.5593,4287.9,4287.8,3.2078]
[1757084049867,1.5593,4288.8,4287.8,7.4818]
[1757084050073,0.6359,4289.0,4288.5,3.2078]
[1757084050265,0.6359,4289.0,4288.6,0.274]
[1757084050473,1.5593,4288.8,4288.5,3.2078]
[1757084050670,0.6359,4289.0,4288.0,3.2078]
[1757084051266,1.5593,4288.8,4288.1,0.274]
[1757084051468,0.6359,4289.0,4288.6,3.2078]
[1757084051661,1.5593,4288.8,4288.6,3.2078]
[1757084051864,1.5593,4288.8,4288.7,0.274]
[1757084052371,0.6359,4289.0,4288.7,0.55830368]
[1757084052570,1.5593,4289.3,4288.8,0.28430046]
[1757084052773,0.6359,4289.5,4288.8,0.55730046]
[1757084053078,2.17893487,4291.5,4288.8,0.28430046]
[1757084053079,1.5593,4289.8,4288.8,0.28430046]
[1757084053272,1.5593,4289.8,4288.8,4.55730046]
[1757084053570,1.5593,4289.3,4288.8,0.28430046]
[1757084053769,1.7293,4288.9,4288.8,0.28430046]
[1757084053974,0.17,4288.9,4288.8,0.55730046]
[1757084054163,0.17,4288.9,4288.8,0.28430046]
[1757084054164,1.7293,4288.9,4288.8,0.28430046]
[1757084054468,1.7293,4288.9,4288.7,0.273]
[1757084054669,1.5593,4288.8,4288.7,0.273]
[1757084055266,0.17,4288.9,4288.6,3.2078]
[1757084055472,1.5593,4288.8,4288.6,3.2078]
[1757084055670,0.17,4288.9,4288.6,3.4808]
[1757084055876,1.5593,4288.8,4288.6,3.4808]
[1757084056071,1.5593,4288.8,4288.6,3.2078]
[1757084056278,0.6359,4288.5,4288.0,3.2078]
[1757084056590,1.5593,4288.4,4288.0,3.2078]
[1757084056772,0.6359,4288.0,4287.5,3.2078]
[1757084057074,0.6359,4288.0,4287.7,0.273]
[1757084057279,1.5593,4287.9,4287.7,0.273]
[1757084057477,0.6359,4288.0,4287.5,3.2078]
[1757084057681,1.5593,4287.9,4287.6,0.273]
[1757084058373,0.17,4288.9,4287.8,0.2822]
[1757084058574,0.5897,4288.0,4287.9,0.273]
[1757084058775,2.2053,4288.0,4287.9,3.2078]
[1757084059077,2.2053,4288.0,4287.9,3.4808]
[1757084059781,0.17,4288.9,4287.9,7.763]
[1757084059981,1.6156,4288.8,4288.7,3.2078]
[1757084060181,0.17,4288.9,4288.8,0.2822]
[1757084060383,0.17,4288.9,4288.7,3.4808]
[1757084060579,1.7856,4288.9,4288.8,0.273]
[1757084060882,1.6156,4288.8,4288.7,3.2078]
[1757084061084,1.6156,4288.8,4288.7,3.4808]
[1757084061382,1.6156,4288.8,4288.2,3.2078]
[1757084061576,1.6156,4288.4,4288.3,0.273]
[1757084062173,0.5897,4288.5,4288.2,3.2078]
[1757084062379,1.6156,4288.4,4288.3,0.273]
[1757084062583,0.17,4288.9,4288.3,0.273]
[1757084062884,1.6156,4289.7,4288.8,3.90966]
[1757084063074,0.273,4290.4,4289.4,3.2078]
[1757084063276,1.6156,4289.9,4289.5,0.273]
[1757084063471,2.2053,4289.5,4289.4,3.2078]
[1757084063979,2.2053,4289.5,4289.4,3.4808]
[1757084064182,1.6156,4289.5,4289.4,3.4808]
[1757084064387,2.2053,4290.0,4289.4,3.4808]
[1757084064579,1.6156,4289.9,4289.4,3.4808]
[1757084064778,1.6156,4289.9,4289.5,0.273]
[1757084065084,0.5897,4290.0,4289.5,0.273]
[1757084065289,1.6156,4289.9,4289.5,0.273]
[1757084065483,2.2053,4290.0,4289.4,3.2078]
[1757084065679,1.6156,4289.9,4289.6,0.273]
[1757084065982,1.6156,4290.4,4289.6,0.273]
[1757084066184,0.5897,4290.5,4290.0,3.2078]
[1757084066781,1.6156,4290.4,4290.1,0.273]
[1757084066983,0.5897,4290.5,4290.2,0.273]
[1757084067187,1.6156,4290.4,4290.2,0.273]
[1757084067784,0.5897,4290.5,4290.2,0.273]
[1757084068086,0.5897,4290.5,4289.9,3.2078]
[1757084068380,1.6156,4290.5,4290.4,3.2078]
[1757084068585,2.2053,4291.0,4290.4,3.4808]
[1757084069186,2.2053,4291.0,4290.9,3.2078]
[1757084069488,2.2053,4291.0,4290.9,3.4808]
[1757084069682,1.33937622,4291.7,4291.0,0.1113]
[1757084069887,2.77792234,4291.7,4291.6,3.2078]
[1757084070081,2.77792234,4291.7,4291.6,3.4808]
[1757084070281,1.6156,4291.4,4290.5,3.2078]
[1757084070579,1.6156,4291.4,4290.6,0.273]
[1757084070780,0.5897,4291.0,4290.6,0.273]
[1757084070976,1.6156,4290.9,4290.6,0.273]
[1757084071783,1.6156,4290.9,4289.9,3.2078]
[1757084072089,3.2078,4290.6,4290.0,0.273]
[1757084072386,0.5897,4290.5,4290.0,0.273]
[1757084072983,1.6156,4289.9,4288.9,3.4798]
[1757084073184,1.6156,4290.4,4289.5,1.6047]
[1757084073485,0.5897,4291.0,4289.9,3.2078]
[1757084073684,1.6156,4290.9,4290.0,0.272]
[1757084074289,1.6156,4290.9,4290.1,0.272]
[1757084074582,1.6156,4290.9,4290.2,0.272]
[1757084075186,0.5897,4291.0,4289.9,3.2078]
[1757084075482,0.5897,4290.5,4289.9,3.2078]
[1757084075682,2.2053,4290.0,4289.0,1.6047]
[1757084075884,0.5897,4290.5,4289.4,3.2078]
[1757084076079,2.2053,4290.5,4289.5,0.272]
[1757084076281,1.6156,4290.5,4290.3,3.2078]
[1757084076592,2.2053,4291.0,4290.4,0.272]
[1757084077184,0.5897,4291.0,4290.5,0.272]
[1757084077383,1.6156,4290.9,4290.5,0.272]
[1757084077580,1.6156,4291.4,4290.8,3.2078]
[1757084077884,0.5897,4291.5,4290.9,0.272]
[1757084078087,0.5897,4291.5,4291.0,0.272]
[1757084078391,1.6156,4291.9,4291.3,3.2078]
[1757084078588,1.6156,4292.3,4291.4,0.272]
[1757084078786,1.6156,4292.3,4291.5,0.272]
[1757084079391,0.5897,4292.0,4291.3,3.2078]
[1757084079688,3.2078,4291.9,4291.3,3.2078]
[1757084079885,0.5897,4291.5,4291.3,3.2078]
[1757084080090,1.6156,4291.4,4291.3,3.2078]
[1757084081190,1.6156,4291.5,4291.1,0.272]
[1757084081491,3.2078,4291.9,4291.2,0.272]
[1757084081492,1.6156,4291.9,4291.2,0.272]
[1757084081688,1.6156,4291.9,4290.7,1.6047]
[1757084081880,1.6156,4291.9,4290.8,0.272]
[1757084082385,3.2078,4291.9,4290.6,3.2078]
[1757084082689,1.6156,4291.3,4290.7,0.272]
[1757084084094,1.6156,4291.3,4290.6,4.8125]
[1757084084394,1.6156,4291.3,4290.7,0.272]
[1757084084593,1.6156,4291.3,4291.1,3.2078]
[1757084084796,1.6156,4291.3,4291.2,0.272]
[1757084085092,0.5897,4291.5,4291.1,3.2078]
[1757084085281,1.6156,4291.4,4291.1,3.2078]
[1757084085483,0.5897,4291.5,4291.1,0.272]
[1757084085681,1.6156,4291.4,4291.1,0.272]
[1757084085988,0.5897,4291.5,4291.1,0.272]
[1757084086394,1.6156,4291.4,4291.1,0.272]
[1757084087092,1.6156,4291.4,4290.6,3.2078]
[1757084087286,1.6156,4291.4,4290.7,0.272]
[1757084087787,0.5897,4291.5,4290.6,3.2078]
[1757084087992,1.6156,4290.9,4290.7,0.272]
[1757084088187,1.5129,4290.9,4290.1,3.2078]
[1757084088387,3.7975,4291.0,4290.1,3.2078]
[1757084088593,0.6011,4290.5,4289.5,3.2078]
[1757084089189,3.8089,4290.0,4289.0,3.2078]
[1757084089494,1.5129,4289.9,4289.1,0.272]
[1757084090492,1.5129,4289.9,4289.2,0.28698304]
[1757084090795,1.5129,4288.9,4288.5,3.2078]
[1757084090995,0.6011,4289.0,4288.5,3.2078]
[1757084091493,1.5129,4288.9,4288.5,3.2078]
[1757084091895,1.5129,4289.0,4288.5,3.2078]
[1757084092099,2.114,4289.5,4288.6,1.8822]
[1757084092488,2.114,4289.5,4289.1,1.6102]
[1757084092699,1.5129,4289.7,4289.0,3.4798]
[1757084093097,0.6011,4290.0,4289.5,3.2078]
[1757084093392,1.5129,4290.0,4289.6,1.6102]
[1757084093695,2.114,4290.5,4289.6,1.6102]
[1757084094091,2.114,4290.5,4289.1,0.272]
[1757084094092,0.6011,4290.0,4289.1,0.272]
[1757084094298,0.6011,4290.0,4289.0,3.2078]
[1757084094490,1.5129,4289.9,4289.0,3.2078]
[1757084094796,1.5129,4289.9,4289.1,1.8822]
[1757084095197,1.7849,4290.4,4289.5,4.818]
[1757084095497,1.7849,4290.4,4289.6,0.272]
[1757084095698,1.5129,4290.4,4289.6,0.272]
[1757084095997,1.5129,4290.4,4290.0,3.2078]
[1757084096196,4.7207,4290.9,4290.1,0.272]
[1757084096393,1.5129,4290.9,4290.1,0.272]
[1757084097100,1.5129,4290.9,4290.2,1.6102]
[1757084097399,0.18193941,4291.6,4290.6,1.6102]
[1757084097602,3.4788,4291.7,4290.6,1.6102]
[1757084097603,1.5129,4291.4,4290.7,0.271]
[1757084097787,3.4788,4291.7,4290.5,3.2078]
[1757084097788,3.65912883,4291.7,4290.5,3.2078]
[1757084098097,1.5129,4290.9,4290.8,0.271]
[1757084098892,3.4788,4291.7,4290.6,1.6102]
[1757084099089,1.5129,4291.4,4290.7,0.271]
[1757084099498,3.66072752,4291.7,4290.5,3.2078]
[1757084099700,3.66072752,4291.7,4290.8,0.271]
[1757084099701,0.6011,4291.0,4290.8,0.271]
[1757084099903,1.5129,4290.9,4290.8,0.271]
[1757084100091,0.6011,4291.0,4290.5,3.2078]
[1757084100293,1.5129,4290.4,4289.8,3.2078]
[1757084100492,0.6011,4291.0,4290.3,3.2078]
[1757084100696,1.5129,4290.4,4290.3,3.2078]
[1757084100895,0.6011,4290.5,4289.7,3.2078]
[1757084101099,0.6011,4290.0,4289.8,0.271]
[1757084101298,1.5129,4289.9,4289.7,3.2078]
[1757084101498,1.5129,4289.9,4289.7,3.4788]
[1757084101704,0.6011,4290.0,4289.7,0.271]
[1757084102005,0.6011,4289.5,4289.3,0.271]
[1757084102206,1.5129,4289.4,4289.0,0.6955]
[1757084102504,1.74604,4289.4,4289.0,0.6955]
[1757084102697,0.6011,4289.5,4289.0,0.6955]
[1757084102897,1.5129,4289.4,4289.0,0.6955]
[1757084103093,0.6011,4290.0,4289.0,0.6955]
[1757084103301,2.114,4290.0,4289.3,3.2078]
[1757084103704,1.5129,4289.9,4289.6,3.2078]
[1757084104500,1.5129,4289.4,4289.0,0.6955]
[1757084104702,0.6011,4289.5,4289.0,0.6955]
[1757084105407,1.74604,4289.4,4287.7,3.2078]
[1757084105598,1.5129,4288.4,4287.4,0.271]
[1757084105905,0.6011,4288.5,4287.4,0.271]
[1757084105906,1.5129,4288.1,4287.6,0.41978]
[1757084106102,0.6011,4288.5,4287.8,1.6102]
[1757084106502,0.6011,4288.5,4287.3,1.6102]
[1757084106503,1.5129,4288.2,4287.3,1.6102]
[1757084106697,1.5129,4288.2,4287.4,0.271]
[1757084107004,1.5129,4288.2,4287.3,0.271]
[1757084107704,1.5129,4288.2,4287.2,3.2078]
[1757084107894,3.2078,4287.8,4286.7,3.2078]
[1757084108098,3.2078,4287.3,4286.5,2.07042788]
[1757084108500,0.6011,4287.0,4286.5,2.07042788]
[1757084108898,1.5129,4286.9,4286.5,2.07042788]
[1757084109206,3.2078,4286.8,4286.5,2.07042788]
[1757084109401,3.2078,4286.8,4286.1,2.85326124]
[1757084109402,0.271,4286.7,4286.1,2.85326124]
[1757084109608,1.5129,4286.2,4286.1,2.85326124]
[1757084110001,1.5129,4286.2,4285.4,3.2078]
[1757084110002,5.5129,4286.2,4285.4,3.2078]
[1757084110201,1.5129,4286.2,4285.4,3.2078]
[1757084110406,1.96572766,4286.2,4285.4,3.2078]
[1757084111211,1.96572766,4286.2,4285.2,1.6102]
[1757084111407,3.2078,4285.8,4285.2,1.6102]
[1757084111613,4.7207,4285.8,4284.9,3.4788]
[1757084111911,4.7207,4285.8,4284.9,3.2078]
[1757084112103,0.271,4285.7,4284.9,3.2078]
[1757084112815,3.2078,4285.8,4285.0,2.2272]
[1757084113303,0.271,4286.0,4285.0,2.4982]
[1757084113711,0.271,4286.0,4285.0,2.64723]
[1757084113906,1.74625,4285.9,4284.9,3.2078]
[1757084114109,1.5129,4285.7,4284.9,3.62784]
[1757084114310,1.5129,4285.7,4284.9,3.2078]
[1757084114806,1.5129,4285.7,4285.1,0.42]
[1757084114999,3.2078,4285.8,4285.2,0.42]
[1757084115203,3.2078,4285.8,4285.2,0.41999]
[1757084115403,3.2078,4286.3,4285.8,0.41994]
[1757084115711,3.2078,4286.3,4286.1,1.6102]
[1757084115909,0.17536276,4286.9,4286.3,2.0301]
[1757084116112,3.2078,4287.2,4286.3,1.6102]
[1757084116303,3.38483442,4287.2,4286.5,2.2272]
[1757084117019,3.2078,4286.7,4285.7,2.03014]
[1757084117221,3.4788,4286.7,4285.8,2.03015]
[1757084117410,0.271,4286.7,4286.0,3.27702]
[1757084117615,0.271,4286.7,4286.3,1.6102]
[1757084117917,0.271,4286.7,4286.2,0.41991]
[1757084118114,0.271,4286.7,4286.2,1.5123]
[1757084118318,0.271,4286.7,4286.3,1.5123]
[1757084118519,0.271,4286.7,4286.2,3.2078]
[1757084118720,1.8202,4286.7,4286.4,1.5123]
[1757084119021,1.8202,4286.7,4286.0,0.617]
[1757084119214,0.271,4286.7,4286.0,1.03693]
[1757084119408,3.2078,4286.9,4286.7,1.5123]
[1757084119614,5.028,4288.5,4287.3,1.5123]
[1757084119817,5.028,4288.5,4287.4,3.4788]
[1757084120015,5.68726252,4288.5,4287.4,3.2078]
[1757084120314,1.5492,4288.3,4287.4,3.2078]
[1757084120614,1.5492,4288.3,4287.6,1.5123]
[1757084120819,3.65576252,4288.5,4287.6,1.5123]
[1757084121913,1.5492,4289.4,4288.4,0.4197]
[1757084122216,1.5492,4289.4,4288.6,1.5123]
[1757084122616,3.4788,4289.5,4288.6,1.93198]
[1757084122816,0.17903089,4289.4,4288.8,1.5123]
[1757084123024,0.271,4289.5,4288.8,1.5123]
[1757084123517,0.271,4289.5,4288.8,1.7823]
[1757084123718,0.271,4289.5,4288.8,1.5123]
[1757084124325,0.271,4289.5,4289.0,1.02303]
[1757084124521,3.4778,4290.0,4289.1,1.5123]
[1757084124715,3.65499781,4290.0,4289.1,1.5123]
[1757084124915,3.65499781,4290.0,4289.1,1.93193]
[1757084125225,3.65499781,4290.0,4289.1,1.5123]
[1757084125422,3.2078,4289.4,4289.0,0.6034]
[1757084125723,1.5492,4289.3,4288.4,1.7823]
[1757084125923,3.2078,4289.4,4288.4,1.5123]
[1757084125924,3.2078,4288.7,4288.4,1.5123]
[1757084126224,0.50317001,4289.4,4288.3,1.5123]
[1757084126225,3.2078,4289.3,4288.3,1.5123]
[1757084126416,0.27,4289.4,4288.6,1.5123]
[1757084126615,0.27,4289.4,4288.8,1.5123]
[1757084126820,3.2078,4289.8,4288.9,1.5123]
[1757084127124,3.2078,4289.8,4289.1,1.5123]
[1757084127621,0.27,4289.9,4289.2,0.27]
[1757084127824,3.2078,4290.8,4289.8,2.5612]
[1757084128019,3.44088,4291.4,4290.1,1.5123]
[1757084128218,3.2078,4290.9,4290.1,1.5123]
[1757084128421,1.5492,4290.3,4289.8,0.27]
[1757084128618,1.5492,4289.8,4289.0,0.6034]
[1757084128818,1.8192,4289.8,4289.1,1.5123]
[1757084129026,0.27,4289.8,4289.1,1.5123]
[1757084129422,3.2078,4290.0,4289.1,1.5123]
[1757084129629,3.2078,4290.0,4289.3,1.5123]
[1757084129924,1.5492,4290.5,4289.5,2.53528]
[1757084130125,1.5492,4290.5,4289.6,1.5123]